[Event "FIDE World Rapid-ch Open 2018"]
[White "Kovalenko, Igor"]
[Black "Gutenev, Alexander"]
[Site "St. Petersburg"]
[Round "5.68"]
[Annotator "RC"]
[Result "0-1"]
[Date "2018.12.26"]
[WhiteElo "2657"]
[BlackElo "2456"]
[PlyCount "122"]
[TimeControl "900+10"]

1. e4 {[%emt 0:0:0]} c5 {[%emt 0:0:0]} 2. Nf3 {[%emt 0:0:0]} Nc6 {[%emt 0:0:0]
} 3. Bb5 {[%emt 0:0:0]} g6 {[%emt 0:0:0]} 4. 0-0 {[%emt 0:0:0]} Bg7 {[%emt 0:0:0]} 5. Nc3 {[%emt 0:0:0]} e5 {[%emt 0:0:7]} 6. a3 {[%emt 0:0:1]
} Nge7 {[%emt 0:0:10]} 7. b4 {[%emt 0:0:2]} d6 {[%emt 0:0:35]
} 8. d3 {[%emt 0:0:5]} 0-0 {[%emt 0:0:13]} 9. Bc4 {[%emt 0:0:22]} h6 {[%emt 0:0:12]
} 10. bxc5 {[%emt 0:0:12]} dxc5 {[%emt 0:0:2]} 11. Be3 {[%emt 0:0:1]
} Nd4 {[%emt 0:0:20]} 12. Nd2 {[%emt 0:0:6]} Kh7 {[%emt 0:0:0]} 13. Nd5 {[%emt 0:0:5]} Be6 {[%emt 0:0:34]} 14. Nxe7 {[%emt 0:0:55]} Qxe7 {[%emt 0:0:3]} 15. a4 {[%emt 0:0:15]} b6 {[%emt 0:1:18]} 16. c3 {[%emt 0:0:39]
} Rfd8 {[%emt 0:1:21]} 17. cxd4 {[%emt 0:0:53]} cxd4 {[%emt 0:0:0]} 18. Bxe6 {[%emt 0:0:1]} Qxe6 {[%emt 0:0:17]} 19. Bxh6 {[%emt 0:0:0]} Bxh6 {[%emt 0:0:17]} 20. Nc4 {[%emt 0:0:2]} a6 {[%emt 0:1:0]} 21. a5 {[%emt 0:2:8]} b5 {[%emt 0:1:10]} 22. Nb6 {[%emt 0:0:2]} Ra7 {[%emt 0:0:0]} 23. Nd5 {[%emt 0:0:1]} Rc8 {[%emt 0:2:0]} 24. h4 {[%emt 0:0:24]} Rc3 {[%emt 0:0:55]} 25. Qf3 {[%emt 0:0:22]} Kg7 {[%emt 0:0:17]} 26. g3 {[%emt 0:0:0]} Rb7 {[%emt 0:0:37]} 27. Rab1 {[%emt 0:1:15]} Ra3 {[%emt 0:0:59]} 28. h5 {[%emt 0:0:1]} Rxa5 {[%emt 0:0:7]} 29. Kg2 {[%emt 0:0:10]} Ra2 {[%emt 0:0:12]
} 30. Nb4 {[%emt 0:1:1]} Ra3 {[%emt 0:0:33]} 31. hxg6 {[%emt 0:0:21]
} fxg6 {[%emt 0:0:12]} 32. Qe2 {[%emt 0:0:1]} a5 {[%emt 0:0:0]} 33. Nd5 {[%emt 0:0:1]} b4 {[%emt 0:0:5]} 34. Rh1 {[%emt 0:0:10]} Rb8 {[%emt 0:1:12]} 35. Rh2 {[%emt 0:7:21]} Rh8 {[%emt 0:0:41]} 36. Rbh1 {[%emt 0:1:13]
} b3 {[%emt 0:0:43]} 37. Qb2 {[%emt 0:0:50]} Qd6 {[%emt 0:0:0]} 38. g4 {[%emt 0:1:0]} Qd7 {[%emt 0:2:17]} 39. Rh4 {[%emt 0:0:31]} g5 {[%emt 0:0:4]
} 40. Qxa3 {[%emt 0:0:21]} gxh4 {[%emt 0:0:3]} 41. Kh3 {[%emt 0:0:13]
} Rf8 {[%emt 0:0:9]} 42. f4 {[%emt 0:0:9]} Bxf4 {[%emt 0:0:0]} 43. Qxb3 {[%emt 0:0:1]} Bg5 {[%emt 0:0:11]} 44. Qd1 {[%emt 0:0:6]} Qf7 {[%emt 0:0:3]} 45. Rg1 {[%emt 0:0:26]} Qf3+ {[%emt 0:0:36]} 46. Qxf3 {[%emt 0:0:1]
} Rxf3+ {[%emt 0:0:0]} 47. Kh2 {[%emt 0:0:2]} Rxd3 {[%emt 0:0:0]} 48. Rb1 {[%emt 0:0:3]} Rd2+ {[%emt 0:0:23]} 49. Kh3 {[%emt 0:0:5]} Rd3+ {[%emt 0:0:10]} 50. Kh2 {[%emt 0:0:0]} a4 {[%emt 0:0:7]} 51. Rb7+ {[%emt 0:0:3]
} Kf8 {[%emt 0:0:3]} 52. Ra7 {[%emt 0:0:8]} a3 {[%emt 0:0:0]} 53. Ra8+ {[%emt 0:0:44]} Kf7 {[%emt 0:0:2]} 54. Ra7+ {[%emt 0:0:1]} Ke6 {[%emt 0:0:20]} 55. Ra6+ {[%emt 0:0:9]} Kd7 {[%emt 0:0:7]} 56. Kg2 {[%emt 0:0:8]
} h3+ {[%emt 0:0:3]} 57. Kh2 {[%emt 0:0:1]} Rb3 {[%emt 0:0:0]} 58. Nb6+ {[%emt 0:0:8]} Kc6 {[%emt 0:0:16]} 59. Nd5+ {[%emt 0:0:6]} Kb5 {[%emt 0:0:24]} 60. Ra8 {[%emt 0:0:2]} Kc4 {[%emt 0:0:15]} 61. Rg8 {[%emt 0:0:3]
} Kd3 {[%emt 0:0:12]} 0-1

[Event "FIDE World Rapid-ch Open 2018"]
[White "Pantsulaia, Levan"]
[Black "Makarov, Marat"]
[Site "St. Petersburg"]
[Round "5.69"]
[Annotator "ChessBase"]
[Result "1-0"]
[Date "2018.12.26"]
[WhiteElo "2597"]
[BlackElo "2505"]
[PlyCount "91"]
[TimeControl "900+10"]

1. Nf3 {[%emt 0:0:0]} Nf6 {[%emt 0:0:0]} 2. g3 {[%emt 0:0:0]} d5 {[%emt 0:0:6]
} 3. Bg2 {[%emt 0:0:0]} g6 {[%emt 0:0:1]} 4. c4 {[%emt 0:0:0]} dxc4 {[%emt 0:0:8]} 5. Na3 {[%emt 0:0:3]} Bg7 {[%emt 0:0:25]} 6. Nxc4 {[%emt 0:0:2]} c5 {[%emt 0:0:3]} 7. d4 {[%emt 0:1:0]} Nc6 {[%emt 0:0:55]
} 8. Be3 {[%emt 0:0:48]} Be6 {[%emt 0:1:1]} 9. Qa4 {[%emt 0:3:6]} Nd5 {[%emt 0:4:34]
} 10. dxc5 {[%emt 0:1:46]} Nxe3 {[%emt 0:1:23]} 11. fxe3 {[%emt 0:0:2]
} 0-0 {[%emt 0:1:0]} 12. Rd1 {[%emt 0:0:48]} Qc7 {[%emt 0:0:0]} 13. Nd4 {[%emt 0:2:57]} Bxc4 {[%emt 0:2:37]} 14. Qxc4 {[%emt 0:0:25]} Ne5 {[%emt 0:0:11]} 15. Qb4 {[%emt 0:0:6]} Rac8 {[%emt 0:0:17]} 16. Rc1 {[%emt 0:0:30]
} Ng4 {[%emt 0:1:24]} 17. Bxb7 {[%emt 0:1:58]} a5 {[%emt 0:0:0]} 18. Qb3 {[%emt 0:0:28]} a4 {[%emt 0:0:39]} 19. Qb4 {[%emt 0:0:5]} Rb8 {[%emt 0:0:2]} 20. c6 {[%emt 0:0:3]} Nxe3 {[%emt 0:0:8]} 21. Nf3 {[%emt 0:0:48]
} Rfd8 {[%emt 0:0:12]} 22. Kf2 {[%emt 0:0:13]} Nd5 {[%emt 0:0:0]} 23. Qb5 {[%emt 0:0:20]} Bh6 {[%emt 0:0:22]} 24. Rcd1 {[%emt 0:1:20]} Ne3 {[%emt 0:0:2]} 25. Rd3 {[%emt 0:1:49]} Rxd3 {[%emt 0:0:4]} 26. exd3 {[%emt 0:0:1]
} Ng4+ {[%emt 0:0:3]} 27. Ke2 {[%emt 0:0:7]} Qd6 {[%emt 0:0:0]} 28. Qxa4 {[%emt 0:0:6]} Nf6 {[%emt 0:0:8]} 29. Qc4 {[%emt 0:0:11]} Nd5 {[%emt 0:0:9]} 30. Re1 {[%emt 0:0:8]} e6 {[%emt 0:0:2]} 31. Kf2 {[%emt 0:0:4]
} Qc7 {[%emt 0:0:3]} 32. Re2 {[%emt 0:0:9]} Bg7 {[%emt 0:0:0]} 33. Kg2 {[%emt 0:0:4]} Rd8 {[%emt 0:0:1]} 34. d4 {[%emt 0:0:11]} h6 {[%emt 0:0:4]
} 35. b4 {[%emt 0:0:5]} g5 {[%emt 0:0:2]} 36. a4 {[%emt 0:0:0]} Nb6 {[%emt 0:0:3]} 37. Qb5 {[%emt 0:0:28]} Rd5 {[%emt 0:0:11]} 38. Qa6 {[%emt 0:0:5]} g4 {[%emt 0:0:3]} 39. Ne1 {[%emt 0:0:5]} Rxd4 {[%emt 0:0:0]} 40. a5 {[%emt 0:0:4]} Nd5 {[%emt 0:0:9]} 41. b5 {[%emt 0:0:2]} Qd6 {[%emt 0:0:11]
} 42. b6 {[%emt 0:0:3]} Nc3 {[%emt 0:0:6]} 43. c7 {[%emt 0:0:0]} Nxe2 {[%emt 0:0:36]} 44. c8=Q+ {[%emt 0:0:2]} Kh7 {[%emt 0:0:1]} 45. Qc2+ {[%emt 0:0:6]} f5 {[%emt 0:0:9]} 46. Qaxe2 {[%emt 0:0:3]} 1-0

[Event "FIDE World Rapid-ch Open 2018"]
[White "Iljiushenok, Ilia"]
[Black "Sokolov, Andrei"]
[Site "St. Petersburg"]
[Round "5.70"]
[Annotator "ChessBase"]
[Result "1-0"]
[Date "2018.12.26"]
[WhiteElo "2533"]
[BlackElo "2532"]
[PlyCount "107"]
[TimeControl "900+10"]

1. e4 {[%emt 0:0:0]} d6 {[%emt 0:0:0]} 2. d4 {[%emt 0:0:0]} Nf6 {[%emt 0:0:0]} 3. Nc3 {[%emt 0:0:0]} e5 {[%emt 0:0:0]} 4. Nf3 {[%emt 0:0:0]} Nbd7 {[%emt 0:0:3]} 5. Rg1 {[%emt 0:0:0]} exd4 {[%emt 0:0:37]} 6. Nxd4 {[%emt 0:0:6]
} Nc5 {[%emt 0:1:5]} 7. Qe2 {[%emt 0:0:37]} c6 {[%emt 0:0:39]
} 8. g4 {[%emt 0:0:51]} Qb6 {[%emt 0:0:47]} 9. g5 {[%emt 0:0:36]} Nfd7 {[%emt 0:0:19]
} 10. Nb3 {[%emt 0:0:21]} a5 {[%emt 0:0:21]} 11. Nd2 {[%emt 0:0:0]} Qc7 {[%emt 0:0:50]} 12. a4 {[%emt 0:0:28]} g6 {[%emt 0:0:26]} 13. Nc4 {[%emt 0:1:21]} Ne5 {[%emt 0:0:26]} 14. Ne3 {[%emt 0:1:8]} Bg7 {[%emt 0:1:13]
} 15. f4 {[%emt 0:1:14]} Ned7 {[%emt 0:0:1]} 16. Bd2 {[%emt 0:0:0]} 0-0 {[%emt 0:0:25]} 17. Bg2 {[%emt 0:0:2]} f6 {[%emt 0:2:16]} 18. gxf6 {[%emt 0:0:58]} Nxf6 {[%emt 0:0:4]} 19. 0-0-0 {[%emt 0:0:27]} Be6 {[%emt 0:0:44]
} 20. Bf3 {[%emt 0:0:45]} Rae8 {[%emt 0:0:20]} 21. Qg2 {[%emt 0:0:16]
} Nfd7 {[%emt 0:2:34]} 22. f5 {[%emt 0:2:5]} Ne5 {[%emt 0:0:0]} 23. Ng4 {[%emt 0:0:43]} Nxg4 {[%emt 0:2:40]} 24. Bxg4 {[%emt 0:0:27]} gxf5 {[%emt 0:0:45]} 25. Bh5 {[%emt 0:0:1]} Re7 {[%emt 0:0:27]} 26. Bf4 {[%emt 0:0:3]
} Rd8 {[%emt 0:1:13]} 27. exf5 {[%emt 0:3:24]} Bxf5 {[%emt 0:0:0]} 28. Qg5 {[%emt 0:0:1]} Bg6 {[%emt 0:0:45]} 29. Bxg6 {[%emt 0:0:3]} hxg6 {[%emt 0:0:1]} 30. Qxg6 {[%emt 0:0:4]} Ne6 {[%emt 0:0:13]} 31. Bh6 {[%emt 0:0:17]
} d5 {[%emt 0:0:8]} 32. Rde1 {[%emt 0:0:17]} Rd6 {[%emt 0:0:0]} 33. Qg4 {[%emt 0:0:55]} Qd7 {[%emt 0:0:14]} 34. h4 {[%emt 0:0:24]} Rf7 {[%emt 0:0:9]} 35. Qh5 {[%emt 0:0:32]} Nf8 {[%emt 0:0:13]} 36. Rg2 {[%emt 0:0:9]
} Rxh6 {[%emt 0:0:22]} 37. Qxh6 {[%emt 0:0:2]} Qh3 {[%emt 0:0:0]} 38. Reg1 {[%emt 0:0:9]} Ne6 {[%emt 0:0:1]} 39. Ne2 {[%emt 0:0:21]} Qf5 {[%emt 0:0:9]} 40. Qg6 {[%emt 0:0:13]} Qe5 {[%emt 0:0:10]} 41. c3 {[%emt 0:0:10]
} Kf8 {[%emt 0:0:5]} 42. Kb1 {[%emt 0:0:3]} b5 {[%emt 0:0:0]} 43. axb5 cxb5 44. h5 Rf6 45. Qh7 {[%emt 0:0:20]} Rh6 {[%emt 0:0:58]} 46. Qd3 {[%emt 0:0:4]} b4 {[%emt 0:0:7]} 47. Nd4 {[%emt 0:0:12]} Nf4 {[%emt 0:0:0]} 48. Qf3 {[%emt 0:0:10]} Rf6 {[%emt 0:0:2]} 49. Rxg7 {[%emt 0:0:3]} bxc3 {[%emt 0:0:1]} 50. Rg8+ {[%emt 0:0:14]} Ke7 {[%emt 0:0:2]} 51. R1g7+ {[%emt 0:0:10]} Kd6 {[%emt 0:0:1]} 52. Rd8+ {[%emt 0:0:2]} Kc5 {[%emt 0:0:0]} 53. Qxc3+ Kb6 54. Rb8+ {[%emt 0:0:26]} 1-0

[Event "FIDE World Rapid-ch Open 2018"]
[White "Tukhaev, Adam"]
[Black "Sanal, Vahap"]
[Site "St. Petersburg"]
[Round "5.71"]
[Annotator "ChessBase"]
[Result "1/2-1/2"]
[Date "2018.12.26"]
[WhiteElo "2527"]
[BlackElo "2490"]
[PlyCount "95"]
[TimeControl "900+10"]

1. e4 e5 2. Nf3 Nf6 3. Nxe5 d6 4. Nf3 Nxe4 5. Nc3 Nxc3 6. dxc3 Be7 7. Be3 0-0 8. Qd2 Nd7 9. 0-0-0 Nf6 10. Kb1 c5 11. Bd3 b5 12. Bg5 Be6 13. Bxf6 Bxf6 14. Be4 b4 15. c4 Rb8 16. Qd3 h6 17. Rhe1 Rb6 18. Bf5 Ra6 19. Bxe6 fxe6 20. Rxe6 Qa5 21. Qb3 Qc7 22. Rde1 Qd7 23. R6e4 Kh8 24. h3 Qc6 25. Qe3 Qa4 26. Qb3 Qc6 27. Re6 Qd7 28. R6e2 Qc6 29. Re6 Qd7 30. Qd3 Qa4 31. Qb3 Qd7 32. Kc1 Ra5 33. R6e4 Ra6 34. Rd1 Qf5 35. Rde1 Qd7 36. Kb1 Qc6 37. Qd3 Qa4 38. Qb3 Qc6 39. Qd3 Ra5 40. Qe3 Qa4 41. Qb3 Qc6 42. Qe3 Qa4 43. Qb3 Qd7 44. Qe3 Qa4 45. Qb3 Qc6 46. Qe3 Qa4 47. Qb3 Qc6 48. Qe3 1/2-1/2

[Event "FIDE World Rapid-ch Open 2018"]
[White "Tari, Aryan"]
[Black "Drygalov, Sergey"]
[Site "St. Petersburg"]
[Round "5.72"]
[Annotator "RC"]
[Result "1-0"]
[Date "2018.12.26"]
[WhiteElo "2620"]
[BlackElo "2446"]
[PlyCount "77"]
[TimeControl "900+10"]

1. e4 {[%emt 0:0:0]} c5 {[%emt 0:0:0]} 2. Nf3 {[%emt 0:0:0]} e6 {[%emt 0:0:0]} 3. d4 {[%emt 0:0:0]} cxd4 {[%emt 0:0:0]} 4. Nxd4 {[%emt 0:0:0]} Nc6 {[%emt 0:0:0]} 5. Nc3 {[%emt 0:0:0]} Qc7 {[%emt 0:0:0]} 6. Qd3 {[%emt 0:0:0]
} a6 {[%emt 0:2:32]} 7. Nxc6 {[%emt 0:0:2]} bxc6 {[%emt 0:0:0]} 8. Qg3 {[%emt 0:0:3]} Qxg3 {[%emt 0:0:1]} 9. hxg3 {[%emt 0:0:1]} d5 {[%emt 0:0:3]} 10. g4 {[%emt 0:0:18]} Nf6 {[%emt 0:0:29]} 11. g5 {[%emt 0:0:0]} Nxe4 {[%emt 0:0:40]} 12. Nxe4 {[%emt 0:0:1]} dxe4 {[%emt 0:0:1]} 13. Rh4 {[%emt 0:0:2]} g6 {[%emt 0:3:52]} 14. Be3 {[%emt 0:0:35]} Bg7 {[%emt 0:0:42]
} 15. 0-0-0 {[%emt 0:0:4]} 0-0 {[%emt 0:0:4]} 16. Bc4 {[%emt 0:0:54]
} a5 {[%emt 0:0:52]} 17. Rxe4 {[%emt 0:1:13]} e5 {[%emt 0:0:0]} 18. Rh4 {[%emt 0:1:19]} Bf5 {[%emt 0:0:43]} 19. Rdh1 {[%emt 0:0:58]} Rfd8 {[%emt 0:0:15]} 20. Rxh7 {[%emt 0:0:22]} Be4 {[%emt 0:0:1]} 21. R1h2 {[%emt 0:2:11]
} Bd5 {[%emt 0:0:2]} 22. R7h4 {[%emt 0:1:32]} Rd7 {[%emt 0:0:0]} 23. c3 {[%emt 0:0:23]} a4 {[%emt 0:1:27]} 24. Kc2 {[%emt 0:0:30]} Rb7 {[%emt 0:0:44]
} 25. f3 {[%emt 0:1:29]} Rab8 {[%emt 0:0:25]} 26. Bc1 {[%emt 0:0:0]} a3 {[%emt 0:1:29]} 27. b3 {[%emt 0:1:3]} e4 {[%emt 0:0:41]} 28. Bxd5 {[%emt 0:0:20]} cxd5 {[%emt 0:0:1]} 29. fxe4 {[%emt 0:0:2]} d4 {[%emt 0:1:33]
} 30. Bxa3 {[%emt 0:1:47]} Ra8 {[%emt 0:0:20]} 31. Bb2 {[%emt 0:0:4]
} Rxa2 {[%emt 0:0:19]} 32. cxd4 {[%emt 0:0:8]} f6 {[%emt 0:0:0]} 33. Kb1 {[%emt 0:0:58]} Ra6 {[%emt 0:0:4]} 34. gxf6 {[%emt 0:0:8]} Bxf6 {[%emt 0:0:2]} 35. R4h3 {[%emt 0:0:4]} Rab6 {[%emt 0:0:2]} 36. Kc2 {[%emt 0:0:9]
} Rc7+ {[%emt 0:0:23]} 37. Rc3 {[%emt 0:0:5]} Rd7 {[%emt 0:0:0]} 38. Rc4 {[%emt 0:0:11]} Rdb7 {[%emt 0:0:12]} 39. Rh3 {[%emt 0:0:2]} 1-0

[Event "FIDE World Rapid-ch Open 2018"]
[White "Gabrielian, Artur"]
[Black "Lomasov, Semyon"]
[Site "St. Petersburg"]
[Round "5.73"]
[Annotator "ChessBase"]
[Result "1/2-1/2"]
[Date "2018.12.26"]
[WhiteElo "2499"]
[BlackElo "2553"]
[PlyCount "52"]
[TimeControl "900+10"]

1. e4 {[%emt 0:0:0]} e6 {[%emt 0:0:0]} 2. d4 {[%emt 0:0:0]} d5 {[%emt 0:0:0]} 3. Nd2 {[%emt 0:0:0]} c5 {[%emt 0:0:0]} 4. Ngf3 {[%emt 0:0:0]} cxd4 {[%emt 0:0:0]} 5. Nxd4 {[%emt 0:0:0]} Nc6 {[%emt 0:0:0]} 6. Bb5 {[%emt 0:0:2]
} Bd7 {[%emt 0:0:2]} 7. Nxc6 {[%emt 0:0:2]} bxc6 {[%emt 0:0:0]} 8. Bd3 {[%emt 0:0:1]} Qc7 {[%emt 0:0:4]} 9. Qe2 {[%emt 0:0:9]} Ne7 {[%emt 0:0:3]
} 10. Nf3 {[%emt 0:0:55]} Ng6 {[%emt 0:0:6]} 11. 0-0 {[%emt 0:0:0]} Bd6 {[%emt 0:1:41]} 12. Re1 {[%emt 0:0:6]} Nf4 {[%emt 0:0:9]} 13. Bxf4 {[%emt 0:0:2]} Bxf4 {[%emt 0:0:1]} 14. g3 {[%emt 0:0:13]} Bd6 {[%emt 0:0:7]
} 15. exd5 {[%emt 0:0:11]} cxd5 {[%emt 0:0:4]} 16. Rac1 {[%emt 0:0:1]
} Qb6 {[%emt 0:1:56]} 17. c4 {[%emt 0:0:8]} dxc4 {[%emt 0:0:0]} 18. Rxc4 {[%emt 0:0:6]} g6 {[%emt 0:0:2]} 19. Rd4 {[%emt 0:1:22]} Bc5 {[%emt 0:1:3]} 20. Rxd7 {[%emt 0:1:38]} Kxd7 {[%emt 0:0:2]} 21. Ne5+ {[%emt 0:0:4]
} Ke7 {[%emt 0:0:6]} 22. Qf3 {[%emt 0:0:36]} f6 {[%emt 0:0:0]} 23. Nc6+ {[%emt 0:0:19]} Kf7 {[%emt 0:0:2]} 24. Ne5+ {[%emt 0:1:55]} Ke7 {[%emt 0:0:19]} 25. Nc6+ {[%emt 0:0:14]} Kf7 {[%emt 0:0:38]} 26. Ne5+ {[%emt 0:2:22]
} Ke7 {[%emt 0:0:5]} 1/2-1/2

[Event "FIDE World Rapid-ch Open 2018"]
[White "Goganov, Aleksey"]
[Black "Bilguun, Sumiya"]
[Site "St. Petersburg"]
[Round "5.74"]
[Annotator "RC"]
[Result "1-0"]
[Date "2018.12.26"]
[WhiteElo "2612"]
[BlackElo "2497"]
[PlyCount "117"]
[TimeControl "900+10"]

1. d4 d5 2. c4 e6 3. Nf3 c6 4. e3 Nf6 5. Bd3 Nbd7 6. b3 Bb4+ 7. Nbd2 e5 8. dxe5 Bc3 9. exf6 Bxa1 10. fxg7 Bxg7 11. cxd5 Nc5 12. Bb1 Qxd5 13. 0-0 Be6 14. e4 Qh5 15. b4 Nd7 16. Bd3 Rg8 17. g3 Bg4 18. Be2 Ne5 19. b5 Rd8 20. bxc6 Nxf3+ 21. Bxf3 Bxf3 22. Qxf3 Qxf3 23. Nxf3 bxc6 24. Be3 Rd3 25. Rb1 Bf6 26. Rb8+ Rd8 27. Rb3 Rg4 28. Rb4 Be7 29. Rc4 f5 30. Rxc6 Rxe4 31. Bxa7 Ra8 32. Be3 Rxa2 33. Rh6 f4 34. gxf4 Kf7 35. Rxh7+ Kg6 36. Rh8 Bf6 37. Rg8+ Kf7 38. Rc8 Re8 39. Rc5 Rg8+ 40. Ng5+ Kg6 41. Kg2 Raa8 42. Kf3 Rac8 43. f5+ Kh5 44. Ne4 Rcf8 45. Rc6 Bg5 46. Bxg5 Rxg5 47. Ng3+ Rxg3+ 48. hxg3 Rxf5+ 49. Kg2 Ra5 50. Kh3 Ra3 51. Rc5+ Kg6 52. f4 Ra6 53. g4 Rb6 54. Kh4 Ra6 55. f5+ Kf6 56. g5+ Kf7 57. Rc7+ Kf8 58. Kh5 Rb6 59. f6 1-0

[Event "FIDE World Rapid-ch Open 2018"]
[White "Shinkevich, Vitaly"]
[Black "Hirneise, Jens"]
[Site "St. Petersburg"]
[Round "5.75"]
[Annotator "NA"]
[Result "1-0"]
[Date "2018.12.26"]
[WhiteElo "2439"]
[BlackElo "2371"]
[PlyCount "101"]
[TimeControl "900+10"]

1. d4 {[%emt 0:0:0]} Nf6 {[%emt 0:0:0]} 2. Nf3 {[%emt 0:0:0]} g6 {[%emt 0:0:0]
} 3. c4 {[%emt 0:0:0]} Bg7 {[%emt 0:0:0]} 4. g3 {[%emt 0:0:0]} 0-0 {[%emt 0:0:0]} 5. Bg2 {[%emt 0:0:0]} d6 {[%emt 0:0:0]} 6. Nc3 {[%emt 0:0:0]
} Nc6 {[%emt 0:0:0]} 7. 0-0 {[%emt 0:0:0]} Bf5 {[%emt 0:0:0]} 8. Ne1 {[%emt 0:0:27]} Na5 {[%emt 0:0:42]} 9. b3 {[%emt 0:0:11]} c5 {[%emt 0:0:32]
} 10. e3 {[%emt 0:0:8]} Nc6 {[%emt 0:0:56]} 11. Bb2 {[%emt 0:0:0]} Qc8 {[%emt 0:1:25]} 12. d5 {[%emt 0:0:21]} Nb8 {[%emt 0:0:24]} 13. Nd3 {[%emt 0:0:16]} Bh3 {[%emt 0:0:12]} 14. e4 {[%emt 0:0:19]} Bxg2 {[%emt 0:0:7]
} 15. Kxg2 {[%emt 0:0:2]} e5 {[%emt 0:0:23]} 16. f3 {[%emt 0:0:0]} Nbd7 {[%emt 0:0:26]} 17. Bc1 {[%emt 0:0:34]} Ne8 {[%emt 0:0:9]} 18. Bd2 {[%emt 0:0:38]} Qd8 {[%emt 0:0:20]} 19. Qe2 {[%emt 0:0:14]} Qe7 {[%emt 0:0:40]
} 20. Rab1 {[%emt 0:0:11]} Nc7 {[%emt 0:0:17]} 21. b4 {[%emt 0:0:0]} cxb4 {[%emt 0:1:7]} 22. Rxb4 {[%emt 0:0:3]} b6 {[%emt 0:0:10]} 23. Rbb1 {[%emt 0:0:15]} Na6 {[%emt 0:0:24]} 24. a3 {[%emt 0:0:53]} f5 {[%emt 0:0:0]} 25. Nb4 {[%emt 0:0:7]} Nxb4 {[%emt 0:0:57]} 26. axb4 {[%emt 0:0:1]
} Bf6 {[%emt 0:0:18]} 27. Ra1 {[%emt 0:0:23]} Rfc8 {[%emt 0:0:28]} 28. Qd3 {[%emt 0:0:33]
} fxe4 {[%emt 0:0:32]} 29. Nxe4 {[%emt 0:0:5]} Rc7 {[%emt 0:0:0]} 30. Rfc1 {[%emt 0:0:22]} Rac8 {[%emt 0:0:5]} 31. Be3 {[%emt 0:0:14]
} Qf8 {[%emt 0:0:22]} 32. h4 {[%emt 0:0:32]} Be7 {[%emt 0:0:28]} 33. c5 {[%emt 0:1:37]
} bxc5 {[%emt 0:0:54]} 34. bxc5 {[%emt 0:0:8]} Nf6 {[%emt 0:0:0]} 35. c6 {[%emt 0:0:16]} Nxe4 {[%emt 0:0:10]} 36. fxe4 {[%emt 0:0:24]} Ra8 {[%emt 0:0:1]} 37. Rcb1 {[%emt 0:0:41]} Qc8 {[%emt 0:0:6]} 38. Qe2 {[%emt 0:0:27]
} Bd8 {[%emt 0:0:42]} 39. Rf1 {[%emt 0:1:4]} Be7 {[%emt 0:0:0]} 40. Qf3 {[%emt 0:0:23]} Bf8 {[%emt 0:1:17]} 41. Rab1 {[%emt 0:0:33]} Qe8 {[%emt 0:0:35]} 42. Bc1 {[%emt 0:1:50]} Rd8 {[%emt 0:1:38]} 43. Bd2 {[%emt 0:0:16]
} Ra8 {[%emt 0:0:24]} 44. Ba5 {[%emt 0:0:6]} Rg7 {[%emt 0:0:0]} 45. Qg4 {[%emt 0:0:36]} h5 {[%emt 0:0:35]} 46. Qe6+ {[%emt 0:0:20]} Qxe6 {[%emt 0:0:26]} 47. dxe6 {[%emt 0:0:3]} Rc8 {[%emt 0:0:32]} 48. c7 {[%emt 0:0:9]
} Re7 {[%emt 0:0:16]} 49. Rb8 {[%emt 0:0:14]} Ree8 {[%emt 0:0:0]} 50. Rxc8 {[%emt 0:0:20]} Rxc8 {[%emt 0:0:1]} 51. Rb1 {[%emt 0:0:5]} 1-0

[Event "FIDE World Rapid-ch Open 2018"]
[White "Nihal Sarin"]
[Black "Golubov, Saveliy"]
[Site "St. Petersburg"]
[Round "5.76"]
[Annotator "ChessBase"]
[Result "1/2-1/2"]
[Date "2018.12.26"]
[WhiteElo "2576"]
[BlackElo "2482"]
[PlyCount "63"]
[TimeControl "900+10"]

1. e4 {[%emt 0:0:0]} c5 {[%emt 0:0:0]} 2. Nf3 {[%emt 0:0:0]} e6 {[%emt 0:0:0]} 3. d4 {[%emt 0:0:5]} d5 {[%emt 0:0:0]} 4. exd5 {[%emt 0:0:9]} exd5 {[%emt 0:0:0]} 5. Bb5+ {[%emt 0:0:10]} Nc6 {[%emt 0:0:0]} 6. 0-0 {[%emt 0:0:3]
} Nf6 {[%emt 0:0:0]} 7. Re1+ {[%emt 0:0:6]} Be6 {[%emt 0:0:0]} 8. Nc3 {[%emt 0:0:13]} Be7 {[%emt 0:0:21]} 9. dxc5 {[%emt 0:0:3]} Bxc5 {[%emt 0:0:5]} 10. Be3 {[%emt 0:0:9]} Bxe3 {[%emt 0:4:23]} 11. Rxe3 {[%emt 0:0:5]
} 0-0 {[%emt 0:0:3]} 12. Nd4 {[%emt 0:0:52]} Qd6 {[%emt 0:0:0]} 13. h3 {[%emt 0:0:53]} Bd7 {[%emt 0:2:20]} 14. a3 {[%emt 0:2:20]} Rfe8 {[%emt 0:0:12]} 15. Rxe8+ {[%emt 0:1:16]} Rxe8 {[%emt 0:0:2]} 16. Qd2 {[%emt 0:0:3]
} h6 {[%emt 0:3:15]} 17. Rd1 {[%emt 0:0:28]} Ne5 {[%emt 0:0:0]} 18. Bxd7 {[%emt 0:1:33]} Qxd7 {[%emt 0:0:9]} 19. b3 {[%emt 0:0:28]} Nc6 {[%emt 0:0:26]} 20. Nf3 {[%emt 0:2:16]} Rd8 {[%emt 0:1:40]} 21. Ne2 {[%emt 0:1:41]
} Ne4 {[%emt 0:0:29]} 22. Qe3 {[%emt 0:0:13]} Re8 {[%emt 0:0:0]} 23. Nf4 {[%emt 0:1:6]} d4 {[%emt 0:0:28]} 24. Qd3 {[%emt 0:1:51]} Qd6 {[%emt 0:0:10]} 25. Ne2 {[%emt 0:1:11]} Nc5 {[%emt 0:0:3]} 26. Qd2 {[%emt 0:0:31]
} Ne4 {[%emt 0:1:26]} 27. Qd3 {[%emt 0:1:2]} Nc5 {[%emt 0:0:0]} 28. Qd2 {[%emt 0:0:1]} Ne4 {[%emt 0:0:1]} 29. Qd3 {[%emt 0:0:23]} Nc5 {[%emt 0:0:27]} 30. Qd2 {[%emt 0:0:2]} Ne4 {[%emt 0:0:47]} 31. Qd3 {[%emt 0:0:15]
} Nc5 {[%emt 0:0:1]} 32. Qd2 {[%emt 0:0:1]} 1/2-1/2